fUST/lending_fUST_20250904
["ID","MTS","AMOUNT","RATE_DAILY","PERIOD"]
[383517416,1756968659281,-480.0,0.0001452,2]
[383517417,1756968659291,-480.0,0.0001452,2]
[383517418,1756968659300,-732.38,0.0001452,2]
[383517419,1756968659309,-480.0,0.0001452,2]
[383517420,1756968659318,-481.62680005,0.0001452,2]
[383517423,1756968659331,-571.7,0.0001452,2]
[383517425,1756968659340,-480.0,0.0001452,2]
[383517427,1756968659350,-1183.0,0.0001452,2]
[383517429,1756968659360,-480.0,0.0001452,2]
[383517431,1756968659369,-480.0,0.0001452,2]
[383517433,1756968659379,-983.2,0.0001452,2]
[383517435,1756968659388,-480.0,0.0001452,2]
[383517437,1756968659397,-480.0,0.0001452,2]
[383517439,1756968659407,-480.0,0.0001452,2]
[383517441,1756968659416,-480.0,0.0001452,2]
[383517443,1756968659425,-480.0,0.0001452,2]
[383517445,1756968659436,-480.0,0.0001452,2]
[383517446,1756968659447,-480.0,0.0001452,2]
[383517448,1756968659456,-480.0,0.0001452,2]
[383517450,1756968659466,-480.0,0.0001452,2]
[383517453,1756968659476,-480.0,0.0001452,2]
[383517455,1756968659487,-1913.82,0.0001452,2]
[383517457,1756968659496,-480.0,0.0001452,2]
[383517458,1756968659505,-480.0,0.0001452,2]
[383517461,1756968659517,-480.0,0.0001452,2]
[383517462,1756968659527,-480.0,0.0001452,2]
[383517464,1756968659537,-3400.38,0.0001452,2]
[383517474,1756968659620,-815.86,0.0001452,2]
[383517476,1756968659630,-1527.81,0.0001452,2]
[383517478,1756968659640,-480.0,0.0001452,2]
[383517480,1756968659650,-698.08,0.0001452,2]
[383517483,1756968659659,-401.39850244,0.00014521,2]
[383517485,1756968659669,-1000.0,0.00014521,2]
[383517487,1756968659679,-1000.0,0.00014521,2]
[383517489,1756968659688,-1000.0,0.00014521,2]
[383517490,1756968659698,-1000.0,0.00014521,2]
[383517493,1756968659709,-1000.0,0.00014521,2]
[383517495,1756968659719,-1000.0,0.00014521,2]
[383517497,1756968659729,-1000.0,0.00014521,2]
[383517499,1756968659739,-1000.0,0.00014521,2]
[383517501,1756968659749,-519.63847923,0.00014521,2]
[383517503,1756968659760,-1000.0,0.00014521,2]
[383517505,1756968659769,-4000.0,0.00014522,2]
[383517507,1756968659779,-977.582,0.00014526,2]
[383517509,1756968659788,-500.0,0.00014568,2]
[383517511,1756968659798,-501.46412833,0.00014568,2]
[383517513,1756968659807,-500.0,0.00014568,2]
[383517515,1756968659817,-157.8521079,0.00014575,2]
[383517517,1756968659828,-323.0002116,0.00014575,2]
[383517519,1756968659838,-168.0,0.00014584,2]
[383517521,1756968659847,-194.72792766,0.00014591,2]
[383517523,1756968659856,-177.88298838,0.00014613,2]
[383517525,1756968659866,-168.0,0.00014616,2]
[383517527,1756968659875,-427.0,0.00014625,2]
[383517529,1756968659884,-168.0,0.00014635,2]
[383517531,1756968659894,-187.99887823,0.00014649,2]
[383517533,1756968659903,-4000.0,0.00014684,2]
[383517535,1756968659913,-386.12782424,0.00014794,2]
[383517537,1756968659922,-480.0,0.00014794,2]
[383517539,1756968659932,-480.0,0.00014794,2]
[383517541,1756968659941,-480.0,0.00014794,2]
[383517543,1756968659951,-480.0,0.00014794,2]
[383517545,1756968659960,-480.0,0.00014794,2]
[383517547,1756968659970,-249.00803309,0.00014794,2]
[383517549,1756968659979,-480.0,0.00014794,2]
[383517551,1756968659988,-609.16,0.00014794,2]
[383517553,1756968659997,-480.0,0.00014794,2]
[383517555,1756968660006,-480.0,0.00014794,2]
[383517557,1756968660018,-480.0,0.00014794,2]
[383517559,1756968660027,-480.0,0.00014794,2]
[383517561,1756968660036,-480.0,0.00014794,2]
[383517563,1756968660045,-480.0,0.00014794,2]
[383517565,1756968660054,-480.0,0.00014794,2]
[383517567,1756968660064,-480.0,0.00014794,2]
[383517569,1756968660073,-480.0,0.00014794,2]
[383517572,1756968660083,-480.0,0.00014794,2]
[383517574,1756968660093,-480.0,0.00014794,2]
[383517576,1756968660103,-1901.27,0.00014794,2]
[383517578,1756968660113,-480.0,0.00014794,2]
[383517580,1756968660122,-480.0,0.00014794,2]
[383517582,1756968660132,-480.0,0.00014794,2]
[383517584,1756968660141,-480.0,0.00014794,2]
[383517586,1756968660151,-480.0,0.00014794,2]
[383517588,1756968660161,-480.0,0.00014794,2]
[383517590,1756968660170,-480.0,0.00014794,2]
[383517592,1756968660180,-480.0,0.00014794,2]
[383517594,1756968660190,-480.0,0.00014794,2]
[383517596,1756968660200,-480.0,0.00014794,2]
[383517598,1756968660210,-626.16954833,0.00014794,2]
[383517600,1756968660220,-480.0,0.00014794,2]
[383517602,1756968660230,-480.0,0.00014794,2]
[383517604,1756968660242,-480.0,0.00014794,2]
[383517606,1756968660252,-480.0,0.00014794,2]
[383517608,1756968660262,-480.0,0.00014794,2]
[383517610,1756968660273,-480.0,0.00014794,2]
[383517612,1756968660283,-480.0,0.00014794,2]
[383517614,1756968660293,-480.0,0.00014794,2]
[383517616,1756968660302,-468.4917602,0.00014794,2]
[383517618,1756968660311,-480.0,0.00014794,2]
[383517620,1756968660322,-480.0,0.00014794,2]
[383517622,1756968660332,-480.0,0.00014794,2]
[383517624,1756968660341,-480.0,0.00014794,2]
[383517626,1756968660351,-480.0,0.00014794,2]
[383517628,1756968660361,-480.0,0.00014794,2]
[383517630,1756968660371,-480.0,0.00014794,2]
[383517632,1756968660382,-480.0,0.00014794,2]
[383517634,1756968660393,-594.7205264,0.00014794,2]
[383517636,1756968660402,-480.0,0.00014794,2]
[383517638,1756968660412,-625.25693867,0.00014794,2]
[383517641,1756968660422,-480.0,0.00014794,2]
[383517643,1756968660433,-480.0,0.00014794,2]
[383517645,1756968660445,-445.82257111,0.00014794,2]
[383517647,1756968660455,-480.0,0.00014794,2]
[383517649,1756968660464,-480.0,0.00014794,2]
[383517651,1756968660474,-528.64,0.00014794,2]
[383517653,1756968660484,-480.0,0.00014794,2]
[383517655,1756968660494,-480.0,0.00014794,2]
[383517657,1756968660504,-484.25296206,0.00014794,2]
[383517659,1756968660514,-728.91,0.00014794,2]
[383517661,1756968660523,-603.89,0.00014794,2]
[383517663,1756968660533,-480.0,0.00014794,2]
[383517665,1756968660543,-480.0,0.00014794,2]
[383517667,1756968660554,-480.0,0.00014794,2]
[383517669,1756968660563,-480.0,0.00014794,2]
[383517671,1756968660572,-480.0,0.00014794,2]
[383517673,1756968660582,-1443.68,0.00014794,2]
[383517675,1756968660591,-480.0,0.00014794,2]
[383517677,1756968660601,-480.0,0.00014794,2]
[383517679,1756968660611,-1343.21,0.00014794,2]
[383517681,1756968660620,-480.0,0.00014794,2]
[383517683,1756968660629,-480.0,0.00014794,2]
[383517685,1756968660638,-480.0,0.00014794,2]
[383517687,1756968660648,-480.0,0.00014794,2]
[383517689,1756968660658,-905.83,0.00014794,2]
[383517691,1756968660667,-480.0,0.00014794,2]
[383517693,1756968660677,-480.0,0.00014794,2]
[383517695,1756968660687,-480.0,0.00014794,2]
[383517697,1756968660696,-480.0,0.00014794,2]
[383517699,1756968660706,-480.0,0.00014794,2]
[383517701,1756968660715,-1306.15,0.00014794,2]
[383517703,1756968660725,-480.0,0.00014794,2]
[383517705,1756968660734,-480.0,0.00014794,2]
[383517707,1756968660743,-483.56826724,0.00014794,2]
[383517709,1756968660753,-152.68683821,0.00014794,2]
[383517711,1756968660764,-480.0,0.00014794,2]
[383517713,1756968660773,-1562.29,0.00014794,2]
[383517715,1756968660782,-1092.88,0.00014794,2]
[383517717,1756968660792,-480.0,0.00014794,2]
[383517719,1756968660801,-480.0,0.00014794,2]
[383517721,1756968660811,-561.32224473,0.00014794,2]
[383517723,1756968660821,-512.44,0.00014794,2]
[383517725,1756968660830,-480.0,0.00014794,2]
[383517727,1756968660839,-1168.82,0.00014794,2]
[383517729,1756968660849,-480.0,0.00014794,2]
[383517731,1756968660859,-480.0,0.00014794,2]
[383517733,1756968660868,-480.0,0.00014794,2]
[383517735,1756968660877,-480.0,0.00014794,2]
[383517737,1756968660886,-483.44820281,0.00014794,2]
[383517739,1756968660896,-732.38,0.00014794,2]
[383517741,1756968660905,-480.0,0.00014794,2]
[383517743,1756968660915,-480.0,0.00014794,2]
[383517745,1756968660924,-1183.0,0.00014794,2]
[383517747,1756968660934,-480.0,0.00014794,2]
[383517749,1756968660943,-480.0,0.00014794,2]
[383517751,1756968660953,-983.2,0.00014794,2]
[383517753,1756968660962,-480.0,0.00014794,2]
[383517755,1756968660972,-480.0,0.00014794,2]
[383517757,1756968660981,-457.11643955,0.00014794,2]
[383517767,1756968661063,-480.0,0.00014794,2]
[383517769,1756968661073,-480.0,0.00014794,2]
[383517771,1756968661083,-480.0,0.00014794,2]
[383517773,1756968661092,-480.0,0.00014794,2]
[383517775,1756968661102,-480.0,0.00014794,2]
[383517777,1756968661112,-491.73154858,0.00014794,2]
[383517779,1756968661122,-1913.82,0.00014794,2]
[383517781,1756968661132,-480.0,0.00014794,2]
[383517783,1756968661141,-480.0,0.00014794,2]
[383517785,1756968661151,-480.0,0.00014794,2]
[383517787,1756968661161,-3400.38,0.00014794,2]
[383517789,1756968661170,-815.86,0.00014794,2]
[383517791,1756968661179,-1527.81,0.00014794,2]
[383517793,1756968661190,-480.0,0.00014794,2]
[383517795,1756968661199,-698.08,0.00014794,2]
[383517797,1756968661209,-2000.0,0.00014816,2]
[383517799,1756968661219,-2000.0,0.00014816,2]
[383517802,1756968661229,-2000.0,0.00014816,2]
[383517804,1756968661239,-160.0,0.00014819,2]
[383517806,1756968661249,-168.0,0.0001485,2]
[383517808,1756968661259,-8000.0,0.00014856,2]
[383517810,1756968661269,-427.0,0.00014899,2]
[383517812,1756968661280,-801.93941976,0.000149,2]
[383517814,1756968661290,-168.0,0.0001493,2]
[383517816,1756968661300,-1011.886,0.00014945,2]
[383517818,1756968661309,-633.0,0.00014945,2]
[383517820,1756968661318,-2159.74,0.00014945,2]
[383517822,1756968661328,-8000.0,0.00014948,2]
[383517824,1756968661337,-12952.10878173,0.00014968,2]
[383517826,1756968661347,-160.0,0.00015,2]
[383517828,1756968661356,-168.0,0.00015029,2]
[383517830,1756968661365,-6000.0,0.0001504,2]
[383517832,1756968661375,-480.0,0.00015068,2]
[383517834,1756968661385,-480.0,0.00015068,2]
[383517836,1756968661395,-480.0,0.00015068,2]
[383517838,1756968661405,-480.0,0.00015068,2]
[383517840,1756968661415,-480.0,0.00015068,2]
[383517842,1756968661424,-480.0,0.00015068,2]
[383517844,1756968661434,-609.16,0.00015068,2]
[383517846,1756968661447,-480.0,0.00015068,2]
[383517848,1756968661457,-480.0,0.00015068,2]
[383517850,1756968661466,-480.0,0.00015068,2]
[383517852,1756968661476,-480.0,0.00015068,2]
[383517854,1756968661487,-480.0,0.00015068,2]
[383517856,1756968661497,-480.0,0.00015068,2]
[383517858,1756968661507,-480.0,0.00015068,2]
[383517860,1756968661517,-480.0,0.00015068,2]
[383517862,1756968661527,-480.0,0.00015068,2]
[383517864,1756968661537,-480.0,0.00015068,2]
[383517866,1756968661547,-480.0,0.00015068,2]
[383517868,1756968661557,-1901.27,0.00015068,2]
[383517870,1756968661567,-480.0,0.00015068,2]
[383517872,1756968661577,-480.0,0.00015068,2]
[383517874,1756968661586,-480.0,0.00015068,2]
[383517877,1756968661596,-480.0,0.00015068,2]
[383517879,1756968661606,-480.0,0.00015068,2]
[383517881,1756968661616,-480.0,0.00015068,2]
[383517883,1756968661626,-480.0,0.00015068,2]
[383517885,1756968661636,-480.0,0.00015068,2]
[383517887,1756968661645,-480.0,0.00015068,2]
[383517889,1756968661655,-480.0,0.00015068,2]
[383517891,1756968661664,-480.0,0.00015068,2]
[383517893,1756968661674,-480.0,0.00015068,2]
[383517895,1756968661683,-480.0,0.00015068,2]
[383517897,1756968661693,-480.0,0.00015068,2]
[383517899,1756968661702,-480.0,0.00015068,2]
[383517901,1756968661712,-480.0,0.00015068,2]
[383517903,1756968661722,-480.0,0.00015068,2]
[383517905,1756968661731,-480.0,0.00015068,2]
[383517907,1756968661741,-480.0,0.00015068,2]
[383517909,1756968661751,-480.0,0.00015068,2]
[383517911,1756968661760,-480.0,0.00015068,2]
[383517913,1756968661770,-480.0,0.00015068,2]
[383517915,1756968661779,-480.0,0.00015068,2]
[383517917,1756968661789,-480.0,0.00015068,2]
[383517919,1756968661798,-480.0,0.00015068,2]
[383517921,1756968661808,-480.0,0.00015068,2]
[383517923,1756968661818,-480.0,0.00015068,2]
[383517925,1756968661827,-567.39803248,0.00015068,2]
[383517927,1756968661837,-584.41,0.00015068,2]
[383517929,1756968661846,-480.0,0.00015068,2]
[383517931,1756968661856,-528.64,0.00015068,2]
[383517933,1756968661865,-480.0,0.00015068,2]
[383517935,1756968661875,-480.0,0.00015068,2]
[383517937,1756968661884,-728.91,0.00015068,2]
[383517939,1756968661894,-480.0,0.00015068,2]
[383517941,1756968661903,-480.0,0.00015068,2]
[383517943,1756968661913,-480.0,0.00015068,2]
[383517945,1756968661924,-480.0,0.00015068,2]
[383517947,1756968661933,-480.0,0.00015068,2]
[383517950,1756968661943,-1443.68,0.00015068,2]
[383517951,1756968661952,-480.0,0.00015068,2]
[383517952,1756968661963,-480.0,0.00015068,2]
[383517953,1756968661972,-1343.21,0.00015068,2]
[383517954,1756968661981,-583.93237027,0.00015068,2]
[383517955,1756968661990,-480.0,0.00015068,2]
[383517956,1756968661999,-480.0,0.00015068,2]
[383517957,1756968662009,-480.0,0.00015068,2]
[383517958,1756968662018,-905.83,0.00015068,2]
[383517959,1756968662027,-480.0,0.00015068,2]
[383517960,1756968662036,-480.0,0.00015068,2]
[383517961,1756968662045,-480.0,0.00015068,2]
[383517962,1756968662054,-480.0,0.00015068,2]
[383517963,1756968662063,-480.0,0.00015068,2]
[383517964,1756968662072,-1306.15,0.00015068,2]
[383517965,1756968662081,-480.0,0.00015068,2]
[383517966,1756968662090,-502.26375672,0.00015068,2]
[383517967,1756968662100,-480.0,0.00015068,2]
[383517968,1756968662111,-1562.29,0.00015068,2]
[383517970,1756968662120,-1092.88,0.00015068,2]
[383517972,1756968662130,-319.51992435,0.00015068,2]
[383517974,1756968662139,-480.0,0.00015068,2]
[383517976,1756968662150,-512.44,0.00015068,2]
[383517978,1756968662159,-480.0,0.00015068,2]
[383517980,1756968662169,-1168.82,0.00015068,2]
[383517982,1756968662179,-480.0,0.00015068,2]
[383517984,1756968662188,-480.0,0.00015068,2]
[383517986,1756968662198,-480.0,0.00015068,2]
[383517988,1756968662207,-480.0,0.00015068,2]
[383517990,1756968662216,-732.38,0.00015068,2]
[383517992,1756968662226,-486.80128563,0.00015068,2]
[383517994,1756968662236,-480.0,0.00015068,2]
[383517997,1756968662248,-1183.0,0.00015068,2]
[383517998,1756968662258,-480.0,0.00015068,2]
[383518001,1756968662267,-480.0,0.00015068,2]
[383518003,1756968662277,-983.2,0.00015068,2]
[383518005,1756968662287,-480.0,0.00015068,2]
[383518006,1756968662298,-489.66247222,0.00015068,2]
[383518009,1756968662308,-480.0,0.00015068,2]
[383518011,1756968662318,-480.0,0.00015068,2]
[383518012,1756968662328,-480.0,0.00015068,2]
[383518022,1756968662409,-480.0,0.00015068,2]
[383518024,1756968662420,-480.0,0.00015068,2]
[383518026,1756968662430,-1913.82,0.00015068,2]
[383518028,1756968662446,-480.0,0.00015068,2]
[383518031,1756968662457,-480.0,0.00015068,2]
[383518033,1756968662467,-480.0,0.00015068,2]
[383518035,1756968662476,-3400.38,0.00015068,2]
[383518037,1756968662486,-815.86,0.00015068,2]
[383518039,1756968662496,-1527.81,0.00015068,2]
[383518041,1756968662505,-480.0,0.00015068,2]
[383518043,1756968662515,-698.08,0.00015068,2]
[383518045,1756968662525,-1500.0,0.00015068,2]
[383518047,1756968662535,-1500.0,0.00015068,2]
[383518049,1756968662544,-1500.0,0.00015068,2]
[383518051,1756968662554,-503.0499354,0.00015068,2]
[383518053,1756968662564,-1500.0,0.00015068,2]
[383518055,1756968662574,-1500.0,0.00015068,2]
[383518057,1756968662583,-1500.0,0.00015068,2]
[383518059,1756968662593,-1500.0,0.00015068,2]
[383518061,1756968662602,-1248.37487353,0.00015068,2]
[383518063,1756968662612,-308.2471057,0.00015068,2]
[383518065,1756968662621,-2869.29,0.00015082,2]
[383518067,1756968662631,-168.0,0.00015108,2]
[383518069,1756968662640,-3631.53923754,0.00015142,2]
[383518140,1756968663305,-250.0,0.00013288,2]
[383518142,1756968663314,-480.0,0.00013698,2]
[383518144,1756968663323,-482.99241214,0.00013698,2]
[383518146,1756968663332,-161.5001058,0.00013753,2]
[383518148,1756968663342,-480.0,0.00013972,2]
[383518150,1756968663351,-34.66054211,0.00014246,2]
[383518152,1756968663365,-445.33945789,0.00014246,2]
[383518154,1756968663374,-64.42373319,0.0001452,2]
[383518179,1756968663600,-239.07147172,0.00013191,2]
[383518181,1756968663610,-415.57626681,0.0001452,2]
[383518183,1756968663620,-480.0,0.00014794,2]
[383518185,1756968663629,-480.0,0.00015068,2]
[383518187,1756968663638,-750.81983379,0.00015142,2]
[383518275,1756968664481,250.0,0.00013024,2]
[383519653,1756968679549,250.0,0.00013024,2]
[383521631,1756968702419,250.0,0.00013024,2]
[383521737,1756968724934,250.0,0.00013024,2]
[383521740,1756968748261,250.0,0.00013024,2]
[383521741,1756968771556,250.0,0.00013024,2]
[383521742,1756968785837,4425.54439311,0.00013092,2]
[383521743,1756968785863,10000.01,0.00013092,2]
[383521744,1756968785889,10000.01,0.00013092,2]
[383521745,1756968785915,10000.01,0.00013092,2]
[383521746,1756968785941,10000.01,0.00013092,2]
[383521747,1756968785966,10000.01,0.00013092,2]
[383521748,1756968785992,10000.01,0.00013092,2]
[383521749,1756968786016,10000.01,0.00013092,2]
[383521750,1756968786042,10000.01,0.00013092,2]
[383521751,1756968786067,10000.01,0.00013092,2]
[383521752,1756968786094,275574.36560689,0.00013092,2]
[383521753,1756968793106,3000.0,0.00025,30]
[383521754,1756968830732,250.0,0.00013024,2]
[383521761,1756969062567,151.0,0.00012991,2]
[383521766,1756969443061,274.458325,0.00012927,2]
[383521771,1756969484096,169.24132278,0.00013058,2]
[383521782,1756969506867,169.24132278,0.00013058,2]
[383521784,1756969530926,169.24132278,0.00013058,2]
[383521785,1756969547068,514.0,0.000131,2]
[383521788,1756969554819,169.24132278,0.00013058,2]
[383521794,1756969577612,169.24132278,0.00013058,2]
[383521795,1756969601383,169.24132278,0.00013058,2]
[383521798,1756969624393,169.24132278,0.00013058,2]
[383521802,1756969647961,169.24132278,0.00013058,2]
[383521804,1756969671355,169.24132278,0.00013058,2]
[383521808,1756969694252,169.24132278,0.00013058,2]
[383521816,1756969717720,169.24132278,0.00013058,2]
[383521821,1756969740827,169.24132278,0.00013058,2]
[383521827,1756969764185,169.24132278,0.00013058,2]
[383521830,1756969787000,169.24132278,0.00013058,2]
[383521838,1756969810488,169.24132278,0.00013058,2]
[383521888,1756969832763,-169.24132278,0.0001319,2]
[383521891,1756969832773,-168.0,0.00013629,2]
[383521894,1756969832783,-168.0,0.00013634,2]
[383521897,1756969832793,-168.0,0.00013661,2]
[383521899,1756969832802,-187.78006525,0.0001369,2]
[383521901,1756969832811,-1200.0,0.00013695,2]
[383521903,1756969832821,-1200.0,0.00013696,2]
[383521905,1756969832833,-300.0,0.00013696,2]
[383521906,1756969832843,-300.0,0.00013696,2]
[383521908,1756969832852,-300.0,0.00013696,2]
[383521910,1756969832863,-300.0,0.00013696,2]
[383521912,1756969832873,-300.0,0.00013696,2]
[383521914,1756969832883,-36081.20493568,0.00013697,2]
[383522471,1756969838774,-1027.18805814,0.0001356,2]
[383522699,1756969841140,-855.28,0.0001356,2]
[383522973,1756969843789,-348.86420631,0.00013424,2]
[383522975,1756969843799,-1786.94080779,0.0001356,2]
[383522977,1756969843811,-426.885,0.0001356,2]
[383523311,1756969848100,150.75,0.0002191,120]
[383525146,1756969922403,-177.50880161,0.00013424,2]
[383525147,1756969922439,-9047.04111557,0.00013424,2]
[383525150,1756969927343,-597.95128121,0.00013424,2]
[383525151,1756969934366,300.0,0.00013423,2]
[383525154,1756969957345,300.0,0.00013423,2]
[383525155,1756969967372,-300.0,0.00013559,2]
[383525156,1756969967434,-8800.01,0.0001356,2]
[383525157,1756969969747,-1022.49119839,0.0001356,2]
[383525158,1756969969779,-2160.53825277,0.00013597,2]
[383525159,1756969969830,-3633.95109768,0.00013697,2]
[383525160,1756969981575,2225.11013217,0.00013424,2]
[383525161,1756969992374,-300.0,0.00013559,2]
[383525162,1756969992437,-7174.89986783,0.0001356,2]
[383525163,1756969992848,-10000.01,0.0001356,2]
[383525164,1756969992978,-10000.01,0.0001356,2]
[383525165,1756969995254,-10000.01,0.0001356,2]
[383525166,1756969995416,-808.89096551,0.0001356,2]
[383525167,1756969995440,-8382.22806898,0.0001356,2]
[383525168,1756969995525,-2000.0,0.00013586,2]
[383525169,1756969995555,-332.643,0.00013586,2]
[383525170,1756969995620,-5334.724,0.00013697,2]
[383525171,1756969999062,-10000.01,0.00013424,2]
[383525172,1756969999220,-808.89096551,0.00013424,2]
[383525173,1756969999247,-8382.22806898,0.00013424,2]
[383525174,1756969999321,-10000.01,0.00013697,2]
[383525244,1756970618876,-300.0,0.00013156,2]
[383525245,1756970621921,-626.81215849,0.00013156,2]
[383525246,1756970625904,-300.0,0.00013156,2]
[383525247,1756970627661,-273.18784151,0.00013156,2]
[383525268,1756970756493,157.824901,0.0002454,60]
[383525270,1756970756852,157.824901,0.0002385,60]
[383525285,1756970840077,977.582,0.0001306,2]
[383525412,1756971032180,-977.582,0.00013192,2]
[383525414,1756971032190,-977.582,0.00013325,2]
[383525416,1756971032200,-177.88298838,0.00013325,2]
[383525418,1756971032209,-2015.60866444,0.00013496,2]
[383525420,1756971032218,-1200.0,0.00013497,2]
[383525422,1756971032228,-676.41497079,0.00013498,2]
[383525455,1756971038239,-6672.61387573,0.00013498,2]
[383525456,1756971038248,-158.28770115,0.00013498,2]
[383525457,1756971038258,-158.28770115,0.00013499,2]
[383525458,1756971038267,-158.28770115,0.00013499,2]
[383525459,1756971038276,-158.28770115,0.000135,2]
[383525460,1756971038286,-264.0,0.00013569,2]
[383525461,1756971038295,-500.0,0.00013593,2]
[383525462,1756971038304,-500.0,0.00013593,2]
[383525463,1756971038314,-500.0,0.00013593,2]
[383525464,1756971038323,-563.96363434,0.00013593,2]
[383525465,1756971038332,-456.36249695,0.00013593,2]
[383525466,1756971038341,-599.72734607,0.00013593,2]
[383525467,1756971038351,-278.31565323,0.00013593,2]
[383525468,1756971038360,-500.0,0.00013593,2]
[383525469,1756971038369,-500.0,0.00013593,2]
[383525470,1756971038378,-500.0,0.00013593,2]
[383525471,1756971038388,-50000.0,0.00013594,2]
[383525472,1756971038398,-457.74361444,0.00013596,2]
[383525473,1756971038407,-513.07239756,0.00013596,2]
[383525474,1756971038417,-513.07239756,0.00013596,2]
[383525475,1756971038426,-513.07239756,0.00013596,2]
[383525476,1756971038435,-513.07239756,0.00013596,2]
[383525477,1756971038444,-513.07239756,0.00013596,2]
[383525478,1756971038453,-513.07239756,0.00013596,2]
[383525479,1756971038462,-513.07239756,0.00013596,2]
[383525480,1756971038471,-513.07239756,0.00013596,2]
[383525481,1756971038480,-513.07239756,0.00013596,2]
[383525482,1756971038490,-513.07239756,0.00013596,2]
[383525483,1756971038499,-513.07239756,0.00013596,2]
[383525484,1756971038508,-513.07239756,0.00013596,2]
[383525485,1756971038522,-513.07239757,0.00013596,2]
[383525486,1756971038531,-513.07239757,0.00013596,2]
[383525487,1756971038540,-513.07239757,0.00013596,2]
[383525488,1756971038549,-513.07239757,0.00013596,2]
[383525489,1756971038558,-513.07239757,0.00013596,2]
[383525490,1756971038568,-513.07239757,0.00013596,2]
[383525491,1756971038580,-513.07239757,0.00013596,2]
[383525492,1756971038589,-513.07239757,0.00013596,2]
[383525493,1756971038598,-513.07239757,0.00013596,2]
[383525494,1756971038607,-513.07239757,0.00013596,2]
[383525495,1756971038617,-513.07239757,0.00013596,2]
[383525496,1756971038626,-564.37963731,0.00013596,2]
[383525497,1756971038635,-564.37963731,0.00013596,2]
[383525498,1756971038645,-564.37963731,0.00013596,2]
[383525499,1756971038654,-768478.515501,0.00013597,2]
[383525500,1756971038663,-120796.52391517,0.00013598,2]
[383525501,1756971038675,-821.57081904,0.00013598,2]
[383525502,1756971038686,-2210.65288,0.00013598,2]
[383525503,1756971038699,-11241.70958372,0.00013598,2]
[383525509,1756971040100,-6830.90157688,0.00013363,2]
[383525511,1756971040111,-4406.09842312,0.00013598,2]
[383525519,1756971043259,-2662.12319119,0.00013598,2]
[383525520,1756971043272,-840.0,0.00013598,2]
[383525536,1756971115664,157.824901,0.00024467,60]
[383525546,1756971261239,738.53282814,0.00013062,2]
[383525547,1756971284246,738.53282814,0.00013062,2]
[383525549,1756971307093,738.53282814,0.00013062,2]
[383525559,1756971326247,14169.41,0.00029763,60]
[383525561,1756971333018,738.53282814,0.00013062,2]
[383525566,1756971355606,738.53282814,0.00013062,2]
[383525574,1756971379013,738.53282814,0.00013062,2]
[383525578,1756971401469,738.53282814,0.00013062,2]
[383525584,1756971424193,738.53282814,0.00013062,2]
[383525608,1756971510368,470.71196817,0.00012919,2]
[383525676,1756971638042,738.53282814,0.00013098,2]
[383525685,1756971646416,738.53282814,0.00013098,2]
[383525714,1756971712141,157.824902,0.0002438,60]
[383525781,1756972067668,300.0,0.00013093,2]
[383525893,1756972232134,-1691.59999,0.0001336,2]
[383525895,1756972232147,-3507.75257434,0.0001336,2]